bitfinex/quotes_BTCUSD_20250110
["timestamp","ask_amount","ask_price","bid_price","bid_amount"]
[1736500256110,0.24477846,94835.0,94834.0,0.1248806]
[1736500259028,0.24477846,94835.0,94834.0,0.1238806]
[1736500259430,0.24477846,94835.0,94834.0,0.1228806]
[1736500259731,0.24477846,94835.0,94834.0,0.1238806]
[1736500260129,0.24477846,94835.0,94834.0,0.1248806]
[1736500261052,0.24477846,94835.0,94834.0,0.1164806]
[1736500261269,0.37017846,94835.0,94834.0,0.01218084]
[1736500261458,0.37017846,94835.0,94834.0,0.01418084]
[1736500261971,0.37017846,94835.0,94834.0,0.01318084]
[1736500262325,0.37017846,94835.0,94834.0,0.003]
[1736500262543,0.37017846,94835.0,94834.0,0.01217228]
[1736500262744,0.37017846,94835.0,94834.0,0.00172129]
[1736500262967,0.37417846,94835.0,94825.0,0.27824823]
[1736500263141,0.37517846,94835.0,94826.0,0.00173909]
[1736500263349,0.37117846,94835.0,94827.0,0.21091]
[1736500263671,0.37517846,94835.0,94827.0,0.21091]
[1736500263990,0.37517846,94835.0,94832.0,0.210898]
[1736500263991,0.37017846,94835.0,94832.0,0.210898]
[1736500264195,0.37417846,94835.0,94832.0,0.210898]
[1736500264569,0.37017846,94835.0,94832.0,0.210898]
[1736500265105,0.24476973,94834.0,94828.0,0.210908]
[1736500265471,0.24476973,94834.0,94832.0,0.210899]
[1736500265876,0.24476973,94834.0,94833.0,0.00172352]
[1736500266861,0.24976973,94834.0,94833.0,0.00172352]
[1736500267076,0.24576973,94834.0,94833.0,0.00172352]
[1736500267426,0.24976973,94834.0,94833.0,0.00172352]
[1736500267635,0.24976973,94834.0,94828.0,0.210908]
[1736500268017,0.24976973,94834.0,94830.0,0.210903]
[1736500268215,0.24876973,94834.0,94831.0,0.00944974]
[1736500268549,0.24976973,94834.0,94831.0,0.00944974]
[1736500268968,0.24976973,94834.0,94831.0,0.00044972]
[1736500269144,0.24476973,94834.0,94831.0,0.01167545]
[1736500269362,0.24576973,94834.0,94832.0,0.210899]
[1736500269562,0.24976973,94834.0,94832.0,0.21262474]
[1736500269769,0.24976973,94834.0,94833.0,0.01167527]
[1736500270219,0.25376973,94834.0,94833.0,0.01167527]
[1736500270393,0.24576973,94834.0,94833.0,0.01167527]
[1736500270768,0.24976973,94834.0,94833.0,0.01167527]
[1736500271158,0.24576973,94834.0,94833.0,0.01167527]
[1736500271360,0.24476973,94834.0,94833.0,0.01167527]
[1736500271709,0.24576973,94834.0,94833.0,0.01167527]
[1736500272324,0.24476973,94834.0,94833.0,0.01167527]
[1736500272634,0.24976973,94834.0,94833.0,0.01167527]
[1736500273049,0.24976973,94834.0,94833.0,0.01339879]
[1736500273392,0.24976973,94834.0,94830.0,0.210903]
[1736500273851,0.24976973,94834.0,94830.0,0.20190298]
[1736500274431,0.0769,94833.0,94825.0,0.210913]
[1736500274637,0.0769,94833.0,94829.0,0.210905]
[1736500275738,0.0779,94833.0,94829.0,0.210905]
[1736500276018,0.001,94833.0,94829.0,0.210905]
[1736500276243,0.25276973,94834.0,94829.0,0.210905]
[1736500276604,0.25276973,94834.0,94830.0,0.00173019]
[1736500276798,0.001,94833.0,94830.0,0.00173019]
[1736500277013,0.24476973,94832.0,94830.0,0.00173019]
[1736500278886,0.24476973,94832.0,94825.0,0.20364317]
[1736500279316,0.24476973,94832.0,94827.0,0.21091]
[1736500279669,0.24776973,94832.0,94827.0,0.21091]
[1736500279868,0.24876973,94832.0,94827.0,0.21091]
[1736500280066,0.14576973,94832.0,94827.0,0.21091]
[1736500280274,0.14576973,94832.0,94828.0,0.00130209]
[1736500280467,0.14476973,94832.0,94828.0,0.00130209]
[1736500280638,0.14776973,94832.0,94828.0,0.00130209]
[1736500280832,0.14876973,94832.0,94829.0,0.210905]
[1736500281080,0.14576973,94832.0,94830.0,0.00129764]
[1736500282083,0.14476973,94832.0,94827.0,0.21091]
[1736500282283,0.14476973,94832.0,94831.0,0.01292367]
[1736500282645,0.14576973,94832.0,94831.0,0.01292367]
[1736500282778,0.14476973,94832.0,94827.0,0.21091]
[1736500282990,0.14776973,94832.0,94828.0,0.01292423]
[1736500283194,0.14876973,94832.0,94828.0,0.01292423]
[1736500283393,0.14576973,94832.0,94828.0,0.01292423]
[1736500283831,0.14876973,94832.0,94828.0,0.00522408]
[1736500284046,0.14476973,94832.0,94829.0,0.0009749]
[1736500284567,0.14776973,94832.0,94830.0,0.210903]
[1736500284780,0.14776973,94832.0,94831.0,0.18669976]
[1736500285053,0.14776973,94832.0,94831.0,0.1984484]
[1736500285462,0.14776973,94832.0,94831.0,0.21929584]
[1736500285672,0.14876973,94832.0,94831.0,0.21929584]
[1736500286029,0.14776973,94832.0,94831.0,0.21929584]
[1736500286237,0.14476973,94832.0,94831.0,0.21929584]
[1736500286441,0.14476973,94832.0,94831.0,0.22029584]
[1736500286638,0.14776973,94832.0,94831.0,0.22029584]
[1736500287063,0.14476973,94832.0,94831.0,0.22029584]
[1736500287263,0.14476973,94832.0,94831.0,0.23062546]
[1736500287471,0.14476973,94832.0,94831.0,0.23359591]
[1736500288858,0.14476973,94832.0,94831.0,0.23459591]
[1736500289705,0.14449417,94832.0,94831.0,0.23459591]
[1736500294791,0.14449417,94832.0,94831.0,0.47133079]
[1736500295381,0.14449417,94832.0,94831.0,0.23459591]
[1736500295586,0.14449417,94832.0,94831.0,0.24199591]
[1736500296184,0.14449417,94832.0,94831.0,0.47920276]
[1736500296760,0.14449417,94832.0,94831.0,0.24199591]
[1736500322622,8.73e-06,94835.0,94832.0,0.421798]
[1736500322840,8.73e-06,94835.0,94834.0,0.210894]
[1736500322988,8.73e-06,94835.0,94834.0,0.39269376]
[1736500324012,8.73e-06,94835.0,94834.0,0.46259376]
[1736500324923,8.73e-06,94835.0,94834.0,0.46359376]
[1736500325326,8.73e-06,94835.0,94834.0,0.46259376]
[1736500325503,8.73e-06,94835.0,94834.0,0.46459376]
[1736500325737,8.73e-06,94835.0,94834.0,0.64555034]
[1736500326174,0.00100873,94835.0,94834.0,0.65455034]
[1736500326451,0.00100873,94835.0,94834.0,0.65551412]
[1736500326870,0.00100873,94835.0,94834.0,0.65851412]
[1736500329459,0.00100873,94835.0,94834.0,0.62555754]
[1736500329940,0.00100873,94835.0,94834.0,0.63730962]
[1736500330150,0.00100873,94835.0,94834.0,0.73730962]
[1736500330371,0.00100873,94835.0,94834.0,0.77023668]
[1736500331331,0.00100873,94835.0,94834.0,0.77763668]
[1736500332183,0.00100873,94835.0,94834.0,0.77023668]
[1736500332340,0.00100873,94835.0,94834.0,0.77763668]
[1736500337602,0.00100873,94835.0,94834.0,0.63730962]
[1736500337797,0.00100873,94835.0,94834.0,0.59040962]
[1736500338022,0.00100873,94835.0,94834.0,0.33990962]
[1736500338220,0.00100873,94835.0,94834.0,0.02471586]
[1736500338404,0.08260873,94835.0,94834.0,0.02471586]
[1736500338809,0.08160873,94835.0,94834.0,0.01571586]
[1736500339013,0.08160873,94835.0,94834.0,0.01271586]
[1736500339233,0.00500873,94835.0,94834.0,0.11801562]
[1736500339452,0.00700873,94835.0,94834.0,0.11801562]
[1736500339740,0.00200873,94835.0,94834.0,0.11701562]
[1736500339943,8.73e-06,94835.0,94834.0,0.11701562]
[1736500340164,0.00500873,94835.0,94834.0,0.11701562]
[1736500340372,0.00100873,94835.0,94834.0,0.11701562]
[1736500341021,0.00500873,94835.0,94834.0,0.11701562]
[1736500342888,0.00500873,94835.0,94834.0,0.11807004]
[1736500343090,0.00500873,94835.0,94834.0,0.26807004]
[1736500343289,0.00400873,94835.0,94834.0,0.26701562]
[1736500343968,0.00400873,94835.0,94834.0,0.29001562]
[1736500344193,0.00400873,94835.0,94834.0,0.32289668]
[1736500344664,0.00400873,94835.0,94834.0,0.60719164]
[1736500345039,0.00400873,94835.0,94834.0,0.32289668]
[1736500345231,0.00400873,94835.0,94834.0,0.33029668]
[1736500345438,0.00400873,94835.0,94834.0,0.33329668]
[1736500345815,0.00400873,94835.0,94834.0,0.41129668]
[1736500346220,0.00400873,94835.0,94834.0,0.41529668]
[1736500347727,8.73e-06,94835.0,94834.0,0.41529668]
[1736500348304,8.73e-06,94835.0,94834.0,0.51529668]
[1736500350332,8.73e-06,94835.0,94834.0,0.52429668]
[1736500356088,0.04267933,94868.0,94863.0,0.210828]
[1736500356462,0.0427281,94868.0,94864.0,0.01053783]
[1736500356891,0.0427281,94868.0,94864.0,0.22136483]
[1736500357724,0.0487281,94868.0,94864.0,0.22136483]
[1736500358450,0.0507281,94868.0,94864.0,0.22136483]
[1736500358898,0.0507281,94868.0,94864.0,0.22069059]
[1736500359098,0.0427281,94868.0,94865.0,0.00067059]
[1736500359324,0.0447281,94868.0,94865.0,0.00067059]
[1736500359910,0.0447281,94868.0,94866.0,0.0083642]
[1736500360110,0.0447281,94868.0,94867.0,0.00066615]
[1736500360304,0.0447281,94868.0,94864.0,0.210827]
[1736500361126,0.0427281,94868.0,94864.0,0.210827]
[1736500361545,0.0447281,94868.0,94864.0,0.210827]
[1736500361944,0.0427281,94868.0,94864.0,0.210827]
[1736500362377,0.0447281,94868.0,94864.0,0.210827]
[1736500363732,0.0507281,94868.0,94865.0,0.00067059]
[1736500363935,0.0507281,94868.0,94864.0,0.20249757]
[1736500364210,0.0507281,94868.0,94866.0,0.210823]
[1736500364624,0.0507281,94868.0,94867.0,0.0004985]
[1736500364825,0.0487281,94868.0,94867.0,0.0004985]
[1736500365035,0.0507281,94868.0,94867.0,0.0004985]
[1736500365414,0.0447281,94868.0,94864.0,0.20249757]
[1736500365617,0.0427281,94868.0,94867.0,0.0004985]
[1736500365817,0.0427281,94868.0,94864.0,0.20249757]
[1736500366032,0.0427281,94868.0,94867.0,0.0004985]
[1736500366321,0.0447281,94868.0,94867.0,0.0004985]
[1736500366497,0.0447281,94868.0,94864.0,0.20249757]
[1736500366699,0.0447281,94868.0,94865.0,0.00050294]
[1736500366879,0.0507281,94868.0,94865.0,0.00050294]
[1736500367596,0.0487281,94868.0,94865.0,0.00050294]
[1736500367810,0.0447281,94868.0,94865.0,0.00050294]
[1736500368007,0.0507281,94868.0,94865.0,0.00050294]
[1736500368418,0.0487281,94868.0,94861.0,0.421667]
[1736500368643,0.0507281,94868.0,94866.0,0.00050072]
[1736500368815,0.0507281,94868.0,94861.0,0.51746746]
[1736500369223,0.0507281,94868.0,94863.0,0.21083]
[1736500369438,0.0487281,94868.0,94863.0,0.21083]
[1736500369646,0.0487281,94868.0,94864.0,0.00037999]
[1736500370211,0.0487281,94868.0,94861.0,0.30663346]
[1736500370791,0.0507281,94868.0,94861.0,0.51746746]
[1736500371365,0.0447281,94868.0,94861.0,0.51746746]
[1736500371745,0.0447281,94868.0,94861.0,0.30663346]
[1736500371958,0.0447281,94868.0,94862.0,0.00038443]
[1736500372151,0.0447281,94868.0,94863.0,0.21083]
[1736500372522,0.0447281,94868.0,94864.0,0.00037999]
[1736500373078,0.0507281,94868.0,94864.0,0.00037999]
[1736500373849,0.0487281,94868.0,94863.0,0.20220997]
[1736500374087,0.0487281,94868.0,94864.0,0.00028499]
[1736500374293,0.0507281,94868.0,94864.0,0.00028499]
[1736500374635,0.0487281,94868.0,94864.0,0.00028499]
[1736500374850,0.0507281,94868.0,94865.0,0.00894193]
[1736500375471,0.0487281,94868.0,94866.0,0.00028054]
[1736500375660,0.0487281,94868.0,94865.0,0.00894193]
[1736500375907,0.0507281,94868.0,94866.0,0.00028054]
[1736500376109,0.0507281,94868.0,94863.0,0.20220997]
[1736500377299,0.0487281,94868.0,94863.0,0.20220997]
[1736500377426,0.0507281,94868.0,94863.0,0.20220997]
[1736500378041,0.0487281,94868.0,94863.0,0.20220997]
[1736500378263,0.0507281,94868.0,94863.0,0.20220997]
[1736500378472,0.0447281,94868.0,94863.0,0.20220997]
[1736500378868,0.0507281,94868.0,94863.0,0.19320995]
[1736500379049,0.0507281,94868.0,94864.0,0.00028499]
[1736500379251,0.0507281,94868.0,94865.0,0.00894193]
[1736500379658,0.0507281,94868.0,94866.0,0.210823]
[1736500379859,0.00804877,94868.0,94867.0,0.00894199]
[1736500380412,4.877e-05,94868.0,94867.0,0.00894199]
[1736500380735,0.00204877,94868.0,94867.0,0.00894199]
[1736500380944,0.00204877,94868.0,94867.0,0.11324175]
[1736500381144,4.877e-05,94868.0,94867.0,0.11324175]
[1736500381553,0.00204877,94868.0,94867.0,0.19404175]
[1736500381962,0.00604877,94868.0,94867.0,0.19404175]
[1736500382135,4.877e-05,94868.0,94867.0,0.19404175]
[1736500382400,4.877e-05,94868.0,94867.0,0.19504175]
[1736500382606,4.877e-05,94868.0,94867.0,0.19709575]
[1736500382818,4.877e-05,94868.0,94867.0,0.20377407]
[1736500383026,4.877e-05,94868.0,94867.0,0.21344869]
[1736500383233,4.877e-05,94868.0,94867.0,0.21644869]
[1736500383648,4.877e-05,94868.0,94867.0,0.21544869]
[1736500383852,4.877e-05,94868.0,94867.0,0.21644869]
[1736500387079,4.877e-05,94868.0,94867.0,0.21544869]
[1736500387319,4.877e-05,94868.0,94867.0,0.21644869]
[1736500388154,4.877e-05,94868.0,94867.0,0.21344869]
[1736500388566,4.877e-05,94868.0,94867.0,0.21644869]
[1736500389319,4.877e-05,94868.0,94867.0,0.20904869]
[1736500389487,4.877e-05,94868.0,94867.0,0.21644869]
[1736500392070,4.877e-05,94868.0,94867.0,0.20904869]
[1736500392242,4.877e-05,94868.0,94867.0,0.21644869]
[1736500392958,4.877e-05,94868.0,94867.0,0.50036903]
[1736500395191,4.877e-05,94868.0,94867.0,0.21644869]
[1736500398537,4.877e-05,94868.0,94867.0,0.28594869]
[1736500403035,0.00250073,94878.0,94877.0,0.210799]
[1736500403243,0.00250073,94878.0,94877.0,0.31509876]
[1736500403415,0.00250073,94878.0,94877.0,0.32461006]
[1736500403813,0.00250073,94878.0,94877.0,0.5609808]
[1736500404342,0.00350073,94878.0,94877.0,0.5609808]
[1736500404513,0.00350073,94878.0,94877.0,0.5683408]
[1736500404719,0.00350073,94878.0,94877.0,0.33197006]
[1736500405659,0.00350073,94878.0,94877.0,0.56832013]
[1736500405814,0.00350073,94878.0,94877.0,0.56932013]
[1736500406239,0.00250073,94878.0,94877.0,0.56832013]
[1736500406439,0.00250073,94878.0,94877.0,0.57132013]
[1736500406711,0.00250073,94878.0,94877.0,0.56496013]
[1736500406883,0.00250073,94878.0,94877.0,0.57232013]
[1736500407230,0.00250073,94878.0,94877.0,0.64932013]
[1736500407831,0.00250073,94878.0,94877.0,0.41297006]
[1736500408332,0.00250073,94878.0,94877.0,0.42366789]
[1736500408555,0.00250073,94878.0,94877.0,0.57266789]
[1736500408983,0.00250073,94878.0,94877.0,0.57366789]
[1736500409359,0.00250073,94878.0,94877.0,0.57266789]
[1736500409568,0.00250073,94878.0,94877.0,0.56966789]
[1736500409771,0.00250073,94878.0,94877.0,0.57166789]
[1736500410253,0.00250073,94878.0,94877.0,0.59324455]
[1736500410515,0.00250073,94878.0,94877.0,0.59624455]
[1736500410809,0.00250073,94878.0,94877.0,0.59324455]
[1736500411221,0.00250073,94878.0,94877.0,0.59724455]
[1736500412645,0.00250073,94878.0,94877.0,0.58988455]
[1736500412845,0.00250073,94878.0,94877.0,0.59724455]
[1736500414052,8.8e-07,94904.0,94903.0,0.861041]
[1736500414265,0.0001706,94916.0,94915.0,0.3]
[1736500414477,0.0001706,94916.0,94915.0,0.55429976]
[1736500414654,0.1,94958.0,94916.0,0.360712]
[1736500414860,0.1,94958.0,94920.0,0.10429976]
[1736500414861,0.00078387,94921.0,94920.0,0.10429976]
[1736500415064,0.00078387,94921.0,94920.0,0.10535309]
[1736500415270,0.00078387,94921.0,94920.0,0.22835309]
[1736500415478,0.00078387,94921.0,94920.0,0.22729976]
[1736500416273,0.00078387,94921.0,94920.0,0.22929976]
[1736500416631,0.00078387,94921.0,94920.0,0.37929976]
[1736500417255,8.7e-07,94921.0,94920.0,0.37929976]
[1736500417470,8.7e-07,94921.0,94920.0,0.45999976]
[1736500417903,8.7e-07,94921.0,94920.0,0.46016037]
[1736500418103,8.7e-07,94921.0,94920.0,0.46216037]
[1736500418302,8.7e-07,94921.0,94920.0,0.47885982]
[1736500418512,8.7e-07,94921.0,94920.0,0.48385982]
[1736500418753,8.7e-07,94921.0,94920.0,0.49285982]
[1736500418955,8.7e-07,94921.0,94920.0,0.47885982]
[1736500419274,8.7e-07,94921.0,94920.0,0.48385982]
[1736500419476,8.7e-07,94921.0,94920.0,0.49285982]
[1736500419679,8.7e-07,94921.0,94920.0,0.48785982]
[1736500419883,8.7e-07,94921.0,94920.0,0.49728829]
[1736500420286,8.7e-07,94921.0,94920.0,0.50228829]
[1736500420591,8.7e-07,94921.0,94920.0,0.49328829]
[1736500421028,8.7e-07,94921.0,94920.0,0.50228829]
[1736500424712,8.7e-07,94921.0,94920.0,0.73815472]
[1736500424917,8.7e-07,94921.0,94920.0,0.74551472]
[1736500425121,8.7e-07,94921.0,94920.0,0.91515472]
[1736500425448,8.7e-07,94921.0,94920.0,0.30577323]
[1736500426443,8.7e-07,94921.0,94920.0,0.30077323]
[1736500426715,8.7e-07,94921.0,94920.0,0.29341323]
[1736500427000,0.02036465,94930.0,94929.0,0.210683]
[1736500427204,0.02051094,94930.0,94929.0,0.32234276]
[1736500427403,0.02051094,94930.0,94929.0,0.33186556]
[1736500428034,0.02038409,94930.0,94929.0,0.33186556]
[1736500428606,0.02038409,94930.0,94929.0,0.33286556]
[1736500430558,0.02038409,94930.0,94929.0,0.33186556]
[1736500430976,0.02038409,94930.0,94929.0,0.34235687]
[1736500432190,0.02038409,94930.0,94929.0,0.32450556]
[1736500432436,0.02038409,94930.0,94929.0,0.33186556]
[1736500432639,0.34778409,94930.0,94929.0,0.33186556]
[1736500433579,0.34778409,94930.0,94929.0,0.0095228]
[1736500433986,0.34778409,94930.0,94926.0,0.20168998]
[1736500434203,0.34778409,94930.0,94927.0,0.00952761]
[1736500434530,0.34978409,94930.0,94927.0,0.00952761]
[1736500434736,0.34778409,94930.0,94927.0,0.00952761]
[1736500435163,0.34978409,94930.0,94927.0,0.00952761]
[1736500435362,0.083,94929.0,94927.0,0.00952761]
[1736500436091,0.083,94929.0,94928.0,0.210685]
[1736500436323,0.083,94929.0,94927.0,0.00952761]
[1736500436512,0.083,94929.0,94928.0,0.00971569]
[1736500437381,0.083,94929.0,94928.0,0.00985854]
[1736500437940,0.084,94929.0,94928.0,0.00985854]
[1736500438150,0.083,94929.0,94928.0,0.00985854]
[1736500438349,0.084,94929.0,94928.0,0.00985854]
[1736500438550,0.4114,94929.0,94928.0,0.00985854]
[1736500438979,0.4114,94929.0,94928.0,0.00839493]
[1736500439153,0.4104,94929.0,94928.0,0.00839493]
[1736500439786,0.4134,94929.0,94928.0,0.00839493]
[1736500443851,0.4134,94929.0,94928.0,0.10369467]
[1736500444065,0.3304,94929.0,94928.0,0.11069039]
[1736500446529,0.3304,94929.0,94928.0,1.68339039]
[1736500448930,0.3304,94929.0,94928.0,1.57969572]
[1736500449510,0.3304,94929.0,94928.0,1.68399548]
[1736500453896,0.3304,94929.0,94928.0,1.67499546]
[1736500454101,0.3304,94929.0,94928.0,1.68081853]
[1736500458081,0.3304,94929.0,94928.0,1.76301853]
[1736500458952,0.3304,94929.0,94928.0,1.75401851]
[1736500460883,0.003,94929.0,94928.0,1.90401851]
[1736500461261,0.003,94929.0,94928.0,1.92517711]
[1736500461461,0.003,94929.0,94928.0,1.92717711]
[1736500461878,0.02038409,94930.0,94929.0,0.360683]
[1736500462106,0.02038409,94930.0,94929.0,0.46498276]
[1736500462309,0.02038409,94930.0,94929.0,0.47071532]
[1736500463294,0.02038409,94930.0,94929.0,0.47079345]
[1736500463724,0.02038409,94930.0,94929.0,0.60159345]
[1736500464668,0.02038409,94930.0,94929.0,0.60359345]
[1736500465498,0.02038409,94930.0,94929.0,0.62659345]
[1736500465701,0.02038409,94930.0,94929.0,0.63059345]
[1736500466303,0.02038409,94930.0,94929.0,0.62859345]
[1736500466511,0.02038409,94930.0,94929.0,0.62459345]
[1736500466719,0.02038409,94930.0,94929.0,0.72659345]
[1736500466894,0.02038409,94930.0,94929.0,0.73059345]
[1736500467097,0.02038409,94930.0,94929.0,0.72859345]
[1736500467310,0.02038409,94930.0,94929.0,0.72459345]
[1736500467498,0.02038409,94930.0,94929.0,0.72859345]
[1736500467698,0.02038409,94930.0,94929.0,0.73759345]
[1736500471774,0.02038409,94930.0,94929.0,1.02063316]
[1736500472189,0.02038409,94930.0,94929.0,0.73759345]
[1736500472591,0.02038409,94930.0,94929.0,0.74495345]
[1736500473035,0.00603762,94939.0,94938.0,0.683663]
[1736500473237,0.00603762,94939.0,94938.0,0.91656276]
[1736500473448,0.00603762,94939.0,94938.0,0.92270896]
[1736500474513,0.00603762,94939.0,94938.0,0.93170896]
[1736500474843,0.00603762,94939.0,94938.0,1.31477301]
[1736500475060,0.00603762,94939.0,94938.0,1.03170896]
[1736500475920,0.00603762,94939.0,94938.0,1.03570896]
[1736500476298,0.03067755,94956.0,94941.0,0.1]
[1736500476499,0.03067755,94956.0,94947.0,0.31494276]
[1736500477681,0.03067755,94956.0,94947.0,0.32094276]
[1736500479645,0.03067755,94956.0,94947.0,0.32394276]
[1736500479848,0.03067755,94956.0,94947.0,0.33002069]
[1736500480935,0.03067755,94956.0,94947.0,0.35135422]
[1736500481568,0.07847755,94956.0,94947.0,0.35135422]
[1736500481843,0.07847755,94956.0,94947.0,0.35871422]
[1736500482052,0.07847755,94956.0,94947.0,0.34971422]
[1736500482454,0.07847755,94956.0,94947.0,0.35571422]
[1736500482751,0.07847755,94956.0,94947.0,0.35171422]
[1736500482929,0.07847755,94956.0,94947.0,0.34971422]
[1736500483608,0.07847755,94956.0,94947.0,0.35071422]
[1736500484711,0.07847755,94956.0,94947.0,0.35271422]
[1736500486551,0.07847755,94956.0,94947.0,0.35171422]
[1736500488655,0.07847755,94956.0,94947.0,0.34971422]
[1736500491264,0.03067755,94956.0,94947.0,0.34971422]
[1736500492631,0.03067755,94956.0,94947.0,0.58151422]
[1736500492834,0.03067755,94956.0,94947.0,0.88151422]
[1736500493994,0.03067755,94956.0,94947.0,1.11728975]
[1736500494198,0.03067755,94956.0,94947.0,1.12428975]
[1736500494400,0.03067755,94956.0,94947.0,0.88851422]
[1736500495521,0.03067755,94956.0,94947.0,0.89151422]
[1736500495736,0.03067755,94956.0,94947.0,0.88415422]
[1736500495945,0.03067755,94956.0,94947.0,0.89151422]
[1736500496348,0.03067755,94956.0,94947.0,0.80971422]
[1736500497072,0.03067755,94956.0,94947.0,1.045411]
[1736500498003,0.03067755,94956.0,94947.0,1.038051]
[1736500498135,0.03067755,94956.0,94947.0,1.045411]
[1736500498794,0.03067755,94956.0,94947.0,0.80971422]
[1736500500435,0.03067755,94956.0,94947.0,0.89251422]
[1736500502331,0.03067755,94956.0,94947.0,0.35971422]
[1736500502332,0.1272,94955.0,94947.0,0.35971422]
[1736500503443,0.1272,94955.0,94947.0,0.35671422]
[1736500503645,0.1272,94955.0,94947.0,0.34235422]
[1736500503855,0.1272,94955.0,94947.0,0.21672093]
[1736500504070,0.1272,94955.0,94947.0,0.21972093]
[1736500504424,0.1272,94955.0,94947.0,0.21672093]
[1736500504837,0.1272,94955.0,94947.0,0.21772093]
[1736500505475,0.1272,94955.0,94947.0,0.21672093]
[1736500506060,0.1272,94955.0,94947.0,0.21972093]
[1736500506235,0.1272,94955.0,94947.0,0.21672093]
[1736500506651,0.02954963,94948.0,94947.0,0.21672093]
[1736500507072,0.11014963,94948.0,94947.0,0.00607793]
[1736500507275,0.15584963,94948.0,94947.0,0.00607793]
[1736500507477,0.15584963,94948.0,94946.0,0.210644]
[1736500507799,0.15584963,94948.0,94947.0,0.00505336]
[1736500508965,0.15484963,94948.0,94947.0,0.00505336]
[1736500509372,0.15584963,94948.0,94947.0,0.00505336]
[1736500509583,0.15484963,94948.0,94947.0,0.00505336]
[1736500510014,0.15584963,94948.0,94947.0,0.00505336]
[1736500510847,0.15484963,94948.0,94947.0,0.00505336]
[1736500512525,0.15584963,94948.0,94947.0,0.00505336]
[1736500512688,0.07424963,94948.0,94947.0,0.00505336]
[1736500513131,0.02954963,94948.0,94947.0,0.10935312]
[1736500515942,0.02854963,94948.0,94947.0,0.10935312]
[1736500516137,0.02854963,94948.0,94947.0,0.63475312]
[1736500516335,0.02954963,94948.0,94947.0,0.65775312]
[1736500516810,0.02854963,94948.0,94947.0,0.65775312]
[1736500517019,0.02854963,94948.0,94947.0,0.66175312]
[1736500517349,0.02854963,94948.0,94947.0,0.65775312]
[1736500517690,0.02854963,94948.0,94947.0,0.66675312]
[1736500518865,0.02854963,94948.0,94947.0,1.08767895]
[1736500519892,0.02854963,94948.0,94947.0,0.66975312]
[1736500526664,0.02854963,94948.0,94947.0,0.36975312]
[1736500527129,0.02854963,94948.0,94947.0,0.34675312]
[1736500527702,0.02854963,94948.0,94947.0,0.35411312]
[1736500528332,0.02854963,94948.0,94947.0,0.38479112]
[1736500529821,0.02854963,94948.0,94947.0,0.30939112]
[1736500532989,0.02854963,94948.0,94947.0,0.30203112]
[1736500533201,0.02854963,94948.0,94947.0,0.30939112]
[1736500536931,0.02854963,94948.0,94947.0,0.15203112]
[1736500537134,0.02854963,94948.0,94947.0,0.12871312]
[1736500537561,0.02854963,94948.0,94947.0,0.12135312]
[1736500537766,0.02854963,94948.0,94947.0,0.12871312]
[1736500538624,0.02854963,94948.0,94947.0,0.12135312]
[1736500538855,0.07754963,94948.0,94947.0,0.01705336]
[1736500539060,0.07754963,94948.0,94943.0,0.00736]
[1736500539269,0.07754963,94948.0,94943.0,0.11165976]
[1736500539482,0.07754963,94948.0,94944.0,0.21065]
[1736500541617,0.07754963,94948.0,94943.0,0.10429976]
[1736500541769,0.08054963,94948.0,94943.0,0.10429976]
[1736500541972,0.08054963,94948.0,94944.0,0.21065]
[1736500542169,0.07754963,94948.0,94944.0,0.21065]
[1736500542573,0.07754963,94948.0,94936.0,0.210666]
[1736500542574,0.4102,94947.0,94936.0,0.210666]
[1736500542761,0.4102,94947.0,94937.0,0.10429976]
[1736500543185,0.4102,94947.0,94938.0,0.210663]
[1736500543389,0.4102,94947.0,94938.0,0.31496276]
[1736500543794,0.4102,94947.0,94938.0,0.10429976]
[1736500543994,0.4102,94947.0,94939.0,0.210661]
[1736500545455,0.4102,94947.0,94938.0,0.10429976]
[1736500545456,0.210646,94946.0,94938.0,0.10429976]
[1736500546066,0.4122,94947.0,94938.0,0.10429976]
[1736500546279,0.4102,94947.0,94939.0,0.210661]
[1736500546456,0.4122,94947.0,94939.0,0.210661]
[1736500546856,0.4102,94947.0,94939.0,0.210661]
[1736500547326,0.002,94946.0,94939.0,0.210661]
[1736500548046,0.4102,94947.0,94939.0,0.210661]
[1736500550281,0.4122,94947.0,94939.0,0.210661]
[1736500558462,0.4122,94947.0,94940.0,0.210659]
[1736500559721,0.4102,94947.0,94938.0,0.10429976]
[1736500559924,0.48003816,94947.0,94938.0,0.10429976]
[1736500560126,0.4122,94947.0,94938.0,0.10429976]
[1736500560300,0.4122,94947.0,94939.0,0.210661]
[1736500560707,0.4102,94947.0,94939.0,0.210661]
[1736500561093,0.4122,94947.0,94938.0,0.10429976]
[1736500561445,0.210646,94946.0,94938.0,0.10429976]
[1736500561842,0.4102,94947.0,94938.0,0.10429976]
[1736500562236,0.210646,94946.0,94938.0,0.10429976]
[1736500562453,0.4102,94947.0,94938.0,0.10429976]
[1736500562902,0.210646,94946.0,94938.0,0.10429976]
[1736500563110,0.332066,94937.0,94936.0,4e-05]
[1736500563957,0.332066,94937.0,94928.0,1.55273566]
[1736500564378,0.542732,94937.0,94928.0,1.55273566]
[1736500565025,0.542732,94937.0,94936.0,0.001]
[1736500565026,0.544732,94937.0,94936.0,0.001]
[1736500566571,0.55340714,94937.0,94928.0,1.55273566]
[1736500566978,0.56040714,94937.0,94928.0,1.55373566]
[1736500567205,0.55540714,94937.0,94928.0,1.55273566]
[1736500567421,0.55540714,94937.0,94928.0,1.55264272]
[1736500567422,0.21067,94935.0,94928.0,1.55264272]
[1736500568348,0.3274,94936.0,94928.0,1.55364272]
[1736500568795,0.002,94935.0,94928.0,1.55364272]
[1736500569435,0.002,94935.0,94929.0,0.0799]
[1736500569640,0.002,94935.0,94933.0,0.210674]
[1736500569850,0.002,94935.0,94934.0,0.10429976]
[1736500570067,0.007,94935.0,94934.0,0.10429976]
[1736500570281,0.005,94935.0,94934.0,0.10429976]
[1736500570490,0.3274,94936.0,94935.0,0.21067]
[1736500570699,0.3284,94936.0,94935.0,0.31496976]
[1736500571158,0.3274,94936.0,94935.0,0.31496976]
[1736500571770,0.3274,94936.0,94935.0,0.39596976]
[1736500573422,0.3274,94947.0,94946.0,0.210646]
[1736500573559,0.3274,94947.0,94946.0,0.31494576]
[1736500574014,0.3274,94947.0,94946.0,0.30594574]
[1736500574540,0.35594963,94948.0,94946.0,0.30594574]
[1736500574736,0.001,94947.0,94946.0,0.20164598]
[1736500574882,0.001,94947.0,94946.0,0.30594574]
[1736500575107,0.004,94947.0,94946.0,0.30594574]
[1736500575335,0.003,94947.0,94946.0,0.30594574]
[1736500577491,0.35594963,94948.0,94946.0,0.30594574]
[1736500577722,0.35594963,94948.0,94947.0,0.10429976]
[1736500579054,0.35694963,94948.0,94947.0,0.10429976]
[1736500581242,0.15694963,94948.0,94947.0,0.10429976]
[1736500585396,0.48434963,94948.0,94947.0,0.10429976]
[1736500587837,0.48434963,94948.0,94947.0,0.11170713]